fUST/lending_fUST_20250623
["ID","MTS","AMOUNT","RATE_DAILY","PERIOD"]
[367136354,1750666246366,-500.0,0.00021917,2]
[367136355,1750666246376,-500.0,0.00021917,2]
[367136357,1750666246385,-262.19,0.00021917,2]
[367136358,1750666246395,-500.0,0.00021917,2]
[367136359,1750666246404,-460.0,0.00021917,2]
[367136360,1750666246416,-460.0,0.00021917,2]
[367136361,1750666246425,-460.0,0.00021917,2]
[367136362,1750666246435,-460.0,0.00021917,2]
[367136363,1750666246446,-4999.28,0.00021917,2]
[367136364,1750666246456,-460.0,0.00021917,2]
[367136365,1750666246466,-460.0,0.00021917,2]
[367136366,1750666246479,-1219.35,0.00021917,2]
[367136367,1750666246490,-460.0,0.00021917,2]
[367136369,1750666246500,-460.0,0.00021917,2]
[367136371,1750666246510,-460.0,0.00021917,2]
[367136373,1750666246519,-464.61,0.00021917,2]
[367136375,1750666246531,-460.0,0.00021917,2]
[367136377,1750666246541,-460.0,0.00021917,2]
[367136379,1750666246551,-460.0,0.00021917,2]
[367136381,1750666246562,-744.21,0.00021917,2]
[367136383,1750666246572,-497.65,0.00021917,2]
[367136385,1750666246582,-502.73,0.00021917,2]
[367136387,1750666246591,-460.0,0.00021917,2]
[367136389,1750666246600,-460.0,0.00021917,2]
[367136391,1750666246610,-460.0,0.00021917,2]
[367136393,1750666246619,-2473.62,0.00021917,2]
[367136395,1750666246629,-572.79,0.00021917,2]
[367136397,1750666246638,-460.0,0.00021917,2]
[367136399,1750666246648,-460.0,0.00021917,2]
[367136401,1750666246657,-460.0,0.00021917,2]
[367136403,1750666246667,-1482.59,0.00021917,2]
[367136405,1750666246677,-610.84,0.00021917,2]
[367136407,1750666246686,-460.0,0.00021917,2]
[367136409,1750666246697,-460.0,0.00021917,2]
[367136411,1750666246706,-838.24,0.00021917,2]
[367136413,1750666246716,-479.36,0.00021917,2]
[367136416,1750666246725,-649.72,0.00021917,2]
[367136418,1750666246735,-6850.57,0.00021917,2]
[367136420,1750666246744,-274.91846312,0.00021917,2]
[367136421,1750666246754,-443.46265963,0.00021917,2]
[367136423,1750666246763,-2287.98,0.00021917,2]
[367136425,1750666246773,-500.0,0.00021917,2]
[367136426,1750666246782,-460.0,0.00021917,2]
[367136427,1750666246792,-617.18,0.00021917,2]
[367136428,1750666246802,-2882.28,0.00021917,2]
[367136429,1750666246812,-460.0,0.00021917,2]
[367136430,1750666246821,-469.9,0.00021917,2]
[367136431,1750666246831,-513.71,0.00021917,2]
[367136432,1750666246841,-460.0,0.00021917,2]
[367136433,1750666246850,-460.0,0.00021917,2]
[367136434,1750666246860,-460.0,0.00021917,2]
[367136435,1750666246870,-460.0,0.00021917,2]
[367136436,1750666246880,-460.0,0.00021917,2]
[367136438,1750666246890,-460.0,0.00021917,2]
[367136439,1750666246899,-2015.75,0.00021917,2]
[367136440,1750666246908,-460.0,0.00021917,2]
[367136442,1750666246918,-993.65,0.00021917,2]
[367136444,1750666246927,-803.03,0.00021917,2]
[367136446,1750666246937,-460.0,0.00021917,2]
[367136448,1750666246946,-845.01,0.00021917,2]
[367136450,1750666246955,-460.12921962,0.00021917,2]
[367136452,1750666246965,-460.0,0.00021917,2]
[367136454,1750666246975,-460.0,0.00021917,2]
[367136456,1750666246984,-460.0,0.00021917,2]
[367136458,1750666246993,-1044.6,0.00021917,2]
[367136460,1750666247003,-500.0,0.00021917,2]
[367136462,1750666247012,-500.0,0.00021917,2]
[367136464,1750666247022,-500.0,0.00021917,2]
[367136466,1750666247031,-500.0,0.00021917,2]
[367136468,1750666247042,-607.68507989,0.00021917,2]
[367136469,1750666247051,-1473.22,0.00021917,2]
[367136471,1750666247061,-460.0,0.00021917,2]
[367136473,1750666247070,-460.0,0.00021917,2]
[367136475,1750666247079,-1133.22,0.00021917,2]
[367136477,1750666247089,-4683.28,0.00021917,2]
[367136479,1750666247098,-460.0,0.00021917,2]
[367136481,1750666247108,-460.0,0.00021917,2]
[367136483,1750666247118,-1205.15,0.00021917,2]
[367136485,1750666247128,-460.0,0.00021917,2]
[367136487,1750666247137,-477.99,0.00021917,2]
[367136489,1750666247148,-460.0,0.00021917,2]
[367136491,1750666247158,-3216.99,0.00021917,2]
[367136493,1750666247167,-460.0,0.00021917,2]
[367136495,1750666247177,-2341.58,0.00021917,2]
[367136497,1750666247186,-494.14023027,0.00021917,2]
[367136499,1750666247196,-460.0,0.00021917,2]
[367136501,1750666247206,-21969.91,0.00021917,2]
[367136503,1750666247215,-487.28631749,0.00021917,2]
[367136505,1750666247225,-2876.44,0.00021917,2]
[367136507,1750666247234,-6704.7,0.00021917,2]
[367136509,1750666247245,-578.66057676,0.00021917,2]
[367136510,1750666247264,-460.0,0.00021917,2]
[367136511,1750666247274,-1371.96,0.00021917,2]
[367136512,1750666247283,-466.22,0.00021917,2]
[367136514,1750666247293,-460.0,0.00021917,2]
[367136516,1750666247303,-572.61809281,0.00021917,2]
[367136518,1750666247313,-460.0,0.00021917,2]
[367136520,1750666247322,-407.55237719,0.00021917,2]
[367136522,1750666247331,-460.0,0.00021917,2]
[367136524,1750666247341,-5169.24,0.00021917,2]
[367136526,1750666247350,-1607.5,0.00021917,2]
[367136528,1750666247359,-460.0,0.00021917,2]
[367136530,1750666247368,-460.0,0.00021917,2]
[367136532,1750666247378,-460.0,0.00021917,2]
[367136534,1750666247387,-460.0,0.00021917,2]
[367136536,1750666247396,-460.0,0.00021917,2]
[367136538,1750666247405,-991.86,0.00021917,2]
[367136540,1750666247415,-460.0,0.00021917,2]
[367136542,1750666247424,-460.0,0.00021917,2]
[367136544,1750666247434,-460.0,0.00021917,2]
[367136546,1750666247443,-460.0,0.00021917,2]
[367136548,1750666247452,-594.41911813,0.00021917,2]
[367136550,1750666247464,-460.0,0.00021917,2]
[367136552,1750666247473,-710.47,0.00021917,2]
[367136554,1750666247483,-460.0,0.00021917,2]
[367136556,1750666247496,-2978.85,0.00021917,2]
[367136558,1750666247505,-1536.74,0.00021917,2]
[367136560,1750666247515,-848.27,0.00021917,2]
[367136562,1750666247524,-151.0,0.00021917,2]
[367136564,1750666247534,-460.0,0.00021917,2]
[367136566,1750666247544,-494.37346474,0.00021917,2]
[367136568,1750666247554,-151.0,0.00021917,2]
[367136570,1750666247563,-541.85854381,0.00021917,2]
[367136572,1750666247574,-1905.32,0.00021917,2]
[367136573,1750666247584,-460.0,0.00021917,2]
[367136574,1750666247594,-151.0,0.00021917,2]
[367136575,1750666247604,-460.0,0.00021917,2]
[367136576,1750666247614,-1141.15,0.00021917,2]
[367136577,1750666247623,-500.0,0.00021917,2]
[367136578,1750666247633,-460.0,0.00021917,2]
[367136579,1750666247643,-500.0,0.00021917,2]
[367136580,1750666247653,-460.0,0.00021917,2]
[367136581,1750666247663,-1935.47,0.00021917,2]
[367136582,1750666247672,-460.0,0.00021917,2]
[367136583,1750666247682,-460.0,0.00021917,2]
[367136585,1750666247691,-460.0,0.00021917,2]
[367136586,1750666247700,-460.0,0.00021917,2]
[367136588,1750666247710,-9200.65,0.00021917,2]
[367136589,1750666247720,-400.0,0.00021918,7]
[367136590,1750666247730,-150.0,0.00021918,2]
[367136591,1750666247740,-306.56400758,0.00021925,2]
[367136592,1750666247750,-500.0,0.00021944,2]
[367136593,1750666247760,-151.0,0.00021944,2]
[367136594,1750666247770,-198.0,0.00021944,2]
[367136595,1750666247780,-151.0,0.00021944,2]
[367136596,1750666247789,-151.0,0.00021944,2]
[367136597,1750666247799,-500.0,0.00021944,2]
[367136598,1750666247809,-500.0,0.00021944,2]
[367136599,1750666247820,-185.41880834,0.00021953,2]
[367136600,1750666247830,-500.0,0.00021972,2]
[367136601,1750666247840,-151.0,0.00021972,2]
[367136602,1750666247850,-151.0,0.00021972,2]
[367136603,1750666247860,-500.0,0.00021972,2]
[367136604,1750666247869,-151.0,0.00021972,2]
[367136605,1750666247880,-151.0,0.00021972,2]
[367136606,1750666247889,-151.0,0.00021972,2]
[367136607,1750666247900,-151.0,0.00021972,2]
[367136608,1750666247910,-198.0,0.00021972,2]
[367136609,1750666247919,-151.0,0.00021972,2]
[367136610,1750666247929,-151.0,0.00021972,2]
[367136611,1750666247939,-151.0,0.00021972,2]
[367136612,1750666247949,-151.0,0.00021972,2]
[367136613,1750666247958,-151.0,0.00021972,2]
[367136614,1750666247968,-151.0,0.00021972,2]
[367136615,1750666247978,-151.0,0.00021972,2]
[367136616,1750666247988,-502.55035468,0.00021973,2]
[367136617,1750666247998,-211.19422828,0.00021973,2]
[367136618,1750666248007,-500.0,0.00021973,2]
[367136619,1750666248017,-500.0,0.00021973,2]
[367136620,1750666248027,-500.0,0.00021973,2]
[367136621,1750666248036,-500.0,0.00021973,2]
[367136622,1750666248046,-500.0,0.00021973,2]
[367136623,1750666248056,-211.08068204,0.00021973,2]
[367136624,1750666248066,-500.0,0.00021973,2]
[367136625,1750666248075,-500.0,0.00021973,2]
[367136626,1750666248085,-399.34030724,0.00021973,2]
[367136627,1750666248095,-500.72944794,0.00021973,2]
[367136628,1750666248105,-500.0,0.00021973,2]
[367136629,1750666248114,-500.0,0.00021973,2]
[367136630,1750666248124,-500.0,0.00021973,2]
[367136631,1750666248134,-500.0,0.00021973,2]
[367136632,1750666248145,-500.0,0.00021973,2]
[367136633,1750666248155,-500.0,0.00021973,2]
[367136634,1750666248165,-500.0,0.00021973,2]
[367136635,1750666248176,-500.0,0.00021973,2]
[367136636,1750666248185,-500.0,0.00021973,2]
[367136637,1750666248194,-500.0,0.00021973,2]
[367136638,1750666248204,-500.0,0.00021973,2]
[367136639,1750666248213,-500.0,0.00021973,2]
[367136640,1750666248223,-500.0,0.00021973,2]
[367136641,1750666248233,-500.0,0.00021973,2]
[367136642,1750666248243,-500.0,0.00021973,2]
[367136643,1750666248253,-500.0,0.00021973,2]
[367136644,1750666248262,-500.0,0.00021973,2]
[367136645,1750666248271,-500.0,0.00021973,2]
[367136646,1750666248281,-366.36247253,0.00021973,2]
[367136647,1750666248291,-500.0,0.00021973,2]
[367136648,1750666248300,-500.0,0.00021973,2]
[367136649,1750666248309,-500.0,0.00021973,2]
[367136650,1750666248319,-167.62540763,0.00021973,2]
[367136651,1750666248329,-200.0,0.00021999,2]
[367136652,1750666248339,-500.0,0.00021999,2]
[367136653,1750666248348,-151.0,0.00021999,2]
[367136654,1750666248358,-198.0,0.00021999,2]
[367136655,1750666248368,-500.0,0.00021999,2]
[367136656,1750666248378,-151.0,0.00021999,2]
[367136657,1750666248387,-151.0,0.00021999,2]
[367136658,1750666248397,-151.0,0.00021999,2]
[367136659,1750666248409,-151.0,0.00021999,2]
[367136660,1750666248418,-151.0,0.00021999,2]
[367136661,1750666248428,-151.45049726,0.00021999,2]
[367136662,1750666248438,-151.0,0.00021999,2]
[367136663,1750666248448,-151.0,0.00021999,2]
[367136664,1750666248459,-216.26544804,0.00021999,2]
[367136665,1750666248469,-151.0,0.00021999,2]
[367136666,1750666248479,-199.55059891,0.00021999,2]
[367136667,1750666248490,-19057.62473238,0.00022,2]
[367136668,1750666248502,-28569.83580411,0.00022,2]
[367136669,1750666248511,-315988.38911132,0.00022,2]
[367136670,1750666248966,-590.57666205,0.00022,2]
[367136671,1750666288296,150.0,0.00021727,30]
[367136672,1750666288893,150.0,0.00023702,30]
[367136673,1750666368218,150.0,0.00022814,30]
[367136674,1750666447603,150.0,0.00022833,30]
[367136676,1750666528084,150.0,0.00023026,30]
[367136677,1750666610635,150.0,0.00022875,30]
[367136678,1750666690801,150.0,0.00022618,30]
[367136680,1750666769072,150.0,0.00022591,30]
[367136681,1750666848174,150.0,0.00022585,30]
[367136682,1750666923765,150.0,0.00022579,30]
[367136683,1750667000407,191.304811,0.00013699,2]
[367136684,1750667002850,150.0,0.00022583,30]
[367136685,1750667078494,150.0,0.00022595,30]
[367136691,1750667153512,150.0,0.00022612,30]
[367136696,1750667206856,22000.0,0.00023328,30]
[367136697,1750667228132,-191.304811,0.00020187,2]
[367136698,1750667228154,-301.40970821,0.00020365,2]
[367136699,1750667228177,-192.571855,0.00020372,2]
[367136700,1750667228198,-164.72290119,0.00020794,2]
[367136701,1750667228218,-1824.3951601,0.00020878,2]
[367136702,1750667228239,-300.0,0.00020894,2]
[367136703,1750667228261,-1200.0,0.00020894,2]
[367136704,1750667228283,-300.0,0.00020894,2]
[367136705,1750667228304,-300.0,0.00020894,2]
[367136706,1750667228328,-5218.33226271,0.00020895,2]
[367136707,1750667230551,150.0,0.000229,30]
[367136708,1750667307522,150.0,0.00022901,30]
[367136718,1750667388343,150.0,0.0002292,30]
[367136771,1750667432687,-203.9287656,0.00020554,2]
[367136772,1750667432696,-178.0,0.00020894,2]
[367136774,1750667432706,-300.0,0.00020894,2]
[367136775,1750667432716,-1200.0,0.00020894,2]
[367136776,1750667432725,-19681.66773729,0.00020895,2]
[367136777,1750667432734,-207.4,0.00020899,2]
[367136778,1750667432743,-205.01838534,0.00021717,2]
[367136779,1750667432753,-183.064,0.00021763,2]
[367136780,1750667432762,-50363.0,0.000218,7]
[367136781,1750667432771,-846.53928378,0.000218,7]
[367136783,1750667432781,-4935.24,0.00021817,2]
[367136784,1750667432790,-176.47769701,0.00021817,2]
[367136785,1750667432799,-176.47769699,0.00021838,2]
[367136786,1750667432809,-176.47769699,0.00021859,2]
[367136787,1750667432817,-836.70095952,0.00021874,2]
[367136788,1750667432827,-160.0,0.00021874,2]
[367136789,1750667432836,-230.18214666,0.00021874,2]
[367136790,1750667432846,-213.63163053,0.00021874,2]
[367136791,1750667432855,-176.47769699,0.00021879,2]
[367136792,1750667432864,-364.46,0.0002189,3]
[367136793,1750667432873,-182.23,0.0002189,3]
[367136794,1750667432883,-546.69,0.0002189,3]
[367136795,1750667432892,-4984.57,0.0002189,10]
[367136796,1750667432901,-4153.8,0.0002189,10]
[367136797,1750667432910,-500.0,0.00021899,2]
[367136798,1750667432919,-500.0,0.00021899,2]
[367136799,1750667432929,-312.91014766,0.00021899,2]
[367136800,1750667432938,-500.0,0.00021899,2]
[367136801,1750667432948,-500.0,0.00021899,2]
[367136802,1750667432958,-500.0,0.00021899,2]
[367136803,1750667432967,-602.25666516,0.00021899,2]
[367136804,1750667432977,-500.0,0.00021899,2]
[367136805,1750667432987,-500.0,0.00021899,2]
[367136806,1750667432996,-500.0,0.00021899,2]
[367136807,1750667433006,-355.50292165,0.00021899,2]
[367136808,1750667433015,-500.0,0.00021899,2]
[367136809,1750667433025,-5000.0,0.000219,4]
[367136810,1750667433034,-176.47769699,0.000219,2]
[367136811,1750667433043,-21206.51310631,0.000219,2]
[367136825,1750667438610,-28793.48689369,0.000219,2]
[367136826,1750667438620,-50000.0,0.000219,7]
[367136827,1750667438629,-2177.88786882,0.000219,2]
[367136828,1750667438639,-524.09497732,0.00021907,10]
[367136829,1750667438648,-160.0,0.00021914,2]
[367136830,1750667438658,-846.53928378,0.00021914,2]
[367136831,1750667438667,-12553.69357174,0.00021914,2]
[367136832,1750667438676,-425.08510397,0.00021915,2]
[367136833,1750667438685,-193.28,0.00021916,2]
[367136834,1750667438694,-500.0,0.00021917,2]
[367136835,1750667438703,-460.0,0.00021917,2]
[367136836,1750667438713,-460.0,0.00021917,2]
[367136837,1750667438722,-460.0,0.00021917,2]
[367136838,1750667438733,-460.0,0.00021917,2]
[367136839,1750667438742,-460.0,0.00021917,2]
[367136840,1750667438751,-460.0,0.00021917,2]
[367136841,1750667438760,-460.0,0.00021917,2]
[367136842,1750667438769,-460.0,0.00021917,2]
[367136843,1750667438778,-460.0,0.00021917,2]
[367136844,1750667438787,-460.0,0.00021917,2]
[367136845,1750667438796,-460.0,0.00021917,2]
[367136846,1750667438814,-174.98054953,0.00021917,2]
[367136847,1750667438825,-470.81705909,0.00021917,2]
[367136848,1750667438834,-432.94515881,0.00021917,2]
[367136849,1750667438843,-460.0,0.00021917,2]
[367136850,1750667438852,-460.78625412,0.00021917,2]
[367136851,1750667438862,-460.0,0.00021917,2]
[367136852,1750667438871,-460.0,0.00021917,2]
[367136853,1750667438880,-444.12479345,0.00021917,2]
[367136854,1750667438890,-460.0,0.00021917,2]
[367136855,1750667438899,-460.0,0.00021917,2]
[367136856,1750667438908,-728.45,0.00021917,2]
[367136857,1750667438917,-460.0,0.00021917,2]
[367136858,1750667438927,-460.0,0.00021917,2]
[367136859,1750667438936,-460.67097445,0.00021917,2]
[367136860,1750667438945,-460.0,0.00021917,2]
[367136861,1750667438955,-460.0,0.00021917,2]
[367136862,1750667438964,-460.0,0.00021917,2]
[367136863,1750667438974,-460.0,0.00021917,2]
[367136864,1750667438983,-460.0,0.00021917,2]
[367136865,1750667438992,-597.69170077,0.00021917,2]
[367136866,1750667439001,-460.0,0.00021917,2]
[367136867,1750667439011,-460.0,0.00021917,2]
[367136868,1750667439284,-618.92,0.00021917,2]
[367136869,1750667439296,-514.41,0.00021917,2]
[367136870,1750667439306,-460.0,0.00021917,2]
[367136871,1750667439316,-460.0,0.00021917,2]
[367136872,1750667439325,-1017.44,0.00021917,2]
[367136873,1750667439338,-460.0,0.00021917,2]
[367136874,1750667439348,-460.0,0.00021917,2]
[367136875,1750667439358,-460.0,0.00021917,2]
[367136876,1750667439369,-460.0,0.00021917,2]
[367136877,1750667439379,-460.0,0.00021917,2]
[367136878,1750667439389,-460.0,0.00021917,2]
[367136879,1750667439399,-461.66943298,0.00021917,2]
[367136880,1750667439408,-1225.47,0.00021917,2]
[367136881,1750667439418,-460.0,0.00021917,2]
[367136882,1750667439427,-460.0,0.00021917,2]
[367136883,1750667439437,-695.7,0.00021917,2]
[367136884,1750667439447,-460.0,0.00021917,2]
[367136885,1750667439459,-460.0,0.00021917,2]
[367136886,1750667439469,-460.0,0.00021917,2]
[367136887,1750667439478,-409.70245429,0.00021917,2]
[367136888,1750667439489,-460.0,0.00021917,2]
[367136889,1750667439500,-589.57133645,0.00021917,2]
[367136890,1750667439509,-460.0,0.00021917,2]
[367136891,1750667439520,-460.0,0.00021917,2]
[367136892,1750667439530,-460.0,0.00021917,2]
[367136893,1750667439540,-460.0,0.00021917,2]
[367136894,1750667439549,-460.0,0.00021917,2]
[367136895,1750667439559,-708.57,0.00021917,2]
[367136896,1750667439568,-433.3441569,0.00021917,2]
[367136897,1750667439578,-460.0,0.00021917,2]
[367136898,1750667439587,-652.16,0.00021917,2]
[367136899,1750667439596,-460.0,0.00021917,2]
[367136900,1750667439606,-460.0,0.00021917,2]
[367136901,1750667439616,-460.0,0.00021917,2]
[367136902,1750667439626,-460.0,0.00021917,2]
[367136903,1750667439636,-460.0,0.00021917,2]
[367136904,1750667439645,-460.0,0.00021917,2]
[367136905,1750667439654,-460.0,0.00021917,2]
[367136906,1750667439664,-460.0,0.00021917,2]
[367136907,1750667439673,-460.0,0.00021917,2]
[367136908,1750667439682,-460.0,0.00021917,2]
[367136909,1750667439692,-402.08956211,0.00021917,2]
[367136910,1750667439702,-460.0,0.00021917,2]
[367136911,1750667439712,-460.0,0.00021917,2]
[367136912,1750667439722,-460.0,0.00021917,2]
[367136913,1750667439731,-460.0,0.00021917,2]
[367136914,1750667439741,-408.7478443,0.00021917,2]
[367136915,1750667439750,-460.0,0.00021917,2]
[367136916,1750667439760,-460.0,0.00021917,2]
[367136917,1750667439769,-460.0,0.00021917,2]
[367136918,1750667439779,-460.0,0.00021917,2]
[367136919,1750667439788,-280.97848887,0.00021917,2]
[367136920,1750667439800,-460.0,0.00021917,2]
[367136921,1750667439809,-500.0,0.00021917,2]
[367136922,1750667439819,-460.0,0.00021917,2]
[367136923,1750667439828,-460.0,0.00021917,2]
[367136924,1750667439838,-460.0,0.00021917,2]
[367136925,1750667439848,-460.0,0.00021917,2]
[367136926,1750667439858,-460.0,0.00021917,2]
[367136927,1750667439867,-460.0,0.00021917,2]
[367136928,1750667439876,-455.27033712,0.00021917,2]
[367136929,1750667439886,-460.0,0.00021917,2]
[367136930,1750667439895,-460.0,0.00021917,2]
[367136931,1750667439905,-479.55,0.00021917,2]
[367136932,1750667439915,-460.0,0.00021917,2]
[367136933,1750667439924,-460.0,0.00021917,2]
[367136934,1750667439934,-460.0,0.00021917,2]
[367136935,1750667439943,-498.57522429,0.00021917,2]
[367136936,1750667439953,-460.0,0.00021917,2]
[367136937,1750667439963,-460.0,0.00021917,2]
[367136938,1750667439974,-460.0,0.00021917,2]
[367136939,1750667439983,-460.0,0.00021917,2]
[367136940,1750667439992,-460.0,0.00021917,2]
[367136941,1750667440002,-460.0,0.00021917,2]
[367136942,1750667440012,-460.0,0.00021917,2]
[367136943,1750667440022,-460.0,0.00021917,2]
[367136944,1750667440032,-460.0,0.00021917,2]
[367136945,1750667440042,-460.0,0.00021917,2]
[367136947,1750667440052,-460.0,0.00021917,2]
[367136948,1750667440062,-529.80427426,0.00021917,2]
[367136949,1750667440071,-460.0,0.00021917,2]
[367136950,1750667440081,-460.0,0.00021917,2]
[367136951,1750667440090,-460.0,0.00021917,2]
[367136952,1750667440101,-460.0,0.00021917,2]
[367136953,1750667440112,-1000.0,0.00021917,2]
[367136954,1750667440123,-460.0,0.00021917,2]
[367136955,1750667440132,-460.0,0.00021917,2]
[367136956,1750667440142,-460.0,0.00021917,2]
[367136957,1750667440153,-460.0,0.00021917,2]
[367136958,1750667440168,-460.0,0.00021917,2]
[367136959,1750667440178,-460.0,0.00021917,2]
[367136960,1750667440188,-460.0,0.00021917,2]
[367136961,1750667440199,-460.0,0.00021917,2]
[367136962,1750667440212,-477.01,0.00021917,2]
[367136963,1750667440221,-1440.61,0.00021917,2]
[367136964,1750667440232,-460.0,0.00021917,2]
[367136965,1750667440242,-460.0,0.00021917,2]
[367136966,1750667440253,-460.0,0.00021917,2]
[367136967,1750667440262,-460.0,0.00021917,2]
[367136968,1750667440273,-460.0,0.00021917,2]
[367136969,1750667440283,-460.0,0.00021917,2]
[367136970,1750667440293,-460.0,0.00021917,2]
[367136971,1750667440303,-499.85657197,0.00021917,2]
[367136972,1750667440313,-460.0,0.00021917,2]
[367136973,1750667440323,-855.07,0.00021917,2]
[367136974,1750667440334,-400.5505396,0.00021917,2]
[367136975,1750667440343,-460.0,0.00021917,2]
[367136976,1750667440354,-460.0,0.00021917,2]
[367136977,1750667440363,-460.0,0.00021917,2]
[367136978,1750667440373,-460.0,0.00021917,2]
[367136979,1750667440383,-602.47,0.00021917,2]
[367136980,1750667440394,-460.0,0.00021917,2]
[367136981,1750667440403,-460.0,0.00021917,2]
[367136982,1750667440413,-550.58,0.00021917,2]
[367136983,1750667440424,-460.0,0.00021917,2]
[367136984,1750667440434,-460.0,0.00021917,2]
[367136985,1750667440444,-460.0,0.00021917,2]
[367136986,1750667440454,-460.0,0.00021917,2]
[367136987,1750667440465,-1816.82,0.00021917,2]
[367136988,1750667440475,-460.0,0.00021917,2]
[367136989,1750667440486,-460.0,0.00021917,2]
[367136990,1750667440495,-498.64,0.00021917,2]
[367136991,1750667440505,-460.0,0.00021917,2]
[367136992,1750667440515,-598.98,0.00021917,2]
[367136993,1750667440525,-460.0,0.00021917,2]
[367136994,1750667440534,-460.0,0.00021917,2]
[367136995,1750667440544,-460.0,0.00021917,2]
[367136996,1750667440554,-460.0,0.00021917,2]
[367136997,1750667440563,-460.0,0.00021917,2]
[367136998,1750667440573,-460.0,0.00021917,2]
[367136999,1750667440582,-824.56,0.00021917,2]
[367137000,1750667440592,-474.76,0.00021917,2]
[367137001,1750667440602,-460.0,0.00021917,2]
[367137002,1750667440611,-460.0,0.00021917,2]
[367137003,1750667440621,-460.0,0.00021917,2]
[367137004,1750667440630,-460.0,0.00021917,2]
[367137005,1750667440639,-460.0,0.00021917,2]
[367137006,1750667440649,-287.46108804,0.00021917,2]
[367137007,1750667440658,-287.46108804,0.00021917,2]
[367137008,1750667440668,-460.0,0.00021917,2]
[367137009,1750667440678,-460.0,0.00021917,2]
[367137010,1750667440687,-223.30599992,0.00021917,2]
[367137012,1750667440696,-460.0,0.00021917,2]
[367137014,1750667440706,-460.0,0.00021917,2]
[367137016,1750667440715,-460.0,0.00021917,2]
[367137017,1750667440725,-460.0,0.00021917,2]
[367137019,1750667440735,-460.0,0.00021917,2]
[367137021,1750667440744,-460.0,0.00021917,2]
[367137022,1750667440754,-460.0,0.00021917,2]
[367137023,1750667440763,-460.0,0.00021917,2]
[367137024,1750667440773,-2978.85,0.00021917,2]
[367137026,1750667440782,-257.80973196,0.00021917,2]
[367137028,1750667440792,-460.0,0.00021917,2]
[367137029,1750667440801,-460.0,0.00021917,2]
[367137030,1750667440811,-500.0,0.00021917,2]
[367137031,1750667440820,-460.0,0.00021917,2]
[367137033,1750667440830,-460.0,0.00021917,2]
[367137034,1750667440839,-460.0,0.00021917,2]
[367137035,1750667440849,-460.0,0.00021917,2]
[367137036,1750667440858,-460.0,0.00021917,2]
[367137037,1750667440868,-460.0,0.00021917,2]
[367137038,1750667440878,-460.0,0.00021917,2]
[367137039,1750667440887,-458.40269902,0.00021917,2]
[367137040,1750667440897,-461.29345221,0.00021917,2]
[367137041,1750667440906,-460.0,0.00021917,2]
[367137042,1750667440916,-460.0,0.00021917,2]
[367137043,1750667440925,-969.56,0.00021917,2]
[367137044,1750667440935,-460.0,0.00021917,2]
[367137045,1750667440945,-460.0,0.00021917,2]
[367137046,1750667440954,-460.0,0.00021917,2]